fUSD/lending_fUSD_20251110
["ID","MTS","AMOUNT","RATE_DAILY","PERIOD"]
[393519925,1762756232807,-500.0,0.00034899,7]
[393519926,1762756232817,-150.0,0.00034899,7]
[393519927,1762756232827,-150.0,0.00034899,7]
[393519928,1762756232837,-150.0,0.00034899,7]
[393519929,1762756232847,-150.0,0.00034899,2]
[393519930,1762756232857,-150.0,0.00034899,2]
[393519931,1762756232866,-150.0,0.00034899,7]
[393519932,1762756232875,-179.06505433,0.00034899,7]
[393519933,1762756232886,-150.0,0.00034899,7]
[393519934,1762756232895,-500.0,0.00034899,7]
[393519935,1762756232906,-500.0,0.00034899,7]
[393519936,1762756232916,-500.0,0.00034899,7]
[393519937,1762756232926,-323.3685852,0.00034899,7]
[393519938,1762756232936,-159.71484944,0.00034899,7]
[393519939,1762756232946,-185.00238974,0.00034899,7]
[393519940,1762756232955,-61811.96654453,0.000349,2]
[393519941,1762756232969,-2820.71026464,0.000349,2]
[393519942,1762756232981,-35367.32319083,0.000349,2]
[393519943,1762756232991,-10623.57567631,0.000349,2]
[393519944,1762756233001,-6195.69156447,0.00034912,2]
[393519945,1762756233011,-500.0,0.00034973,2]
[393519946,1762756233022,-20759.8402255,0.0003499,3]
[393519947,1762756233032,-679.13,0.00034999,14]
[393519948,1762756233042,-43216.84917931,0.00035,30]
[393519949,1762756233053,-9124.19688164,0.00035,30]
[393519950,1762756233063,-10765.06094167,0.00035,30]
[393519954,1762756237605,-3154.19788522,0.00035,30]
[393519955,1762756237725,-1817.01184,0.00035,30]
[393519956,1762756237843,-250.0,0.00035,30]
[393520055,1762756239847,-412.24240432,0.00035,30]
[393520056,1762756239859,-1064.45716536,0.00035,30]
[393520057,1762756239871,-992.00997522,0.00035,30]
[393520058,1762756239917,-1170.3795753,0.00035,30]
[393520059,1762756239928,-623.85962557,0.00035,30]
[393520060,1762756240354,-1.7e-07,0.00035,30]
[393520066,1762756243048,-531.8341323,0.00035,30]
[393520117,1762756245858,-1407.29252035,0.00035,30]
[393520118,1762756245870,-387.72074015,0.00035,30]
[393520119,1762756245881,-2120.70428449,0.00035,30]
[393520120,1762756245892,-9735.50267491,0.00035,30]
[393520121,1762756245901,-514.49732509,0.00035,30]
[393520122,1762756246011,-301.29399858,0.00035,30]
[393520123,1762756246025,-791.66703611,0.00035,30]
[393520143,1762756246682,-11999.62061953,0.00035,30]
[393520145,1762756246693,-8796.78246117,0.00035,30]
[393520147,1762756246702,-2257.8553152,0.00035,30]
[393520177,1762756588031,-152.0,0.00030794,3]
[393520180,1762757191133,-754.92,0.00033749,120]
[393520181,1762757191155,-83.38634705,0.00033855,2]
[393520190,1762757431912,-1000.0,0.00033667,2]
[393520191,1762757431923,-1852.42,0.00033671,2]
[393520192,1762757431932,-272.80097595,0.00033763,2]
[393520193,1762757431942,-168.57592359,0.00033855,2]
[393520194,1762757431951,-773.61,0.00033873,2]
[393520195,1762757431963,-1273.363,0.00033874,37]
[393520196,1762757431972,-300.0,0.00033955,3]
[393520197,1762757431982,-1200.0,0.00033955,3]
[393520198,1762757431992,-5613.2,0.00033956,2]
[393520199,1762757432002,-500.48,0.00033956,2]
[393520200,1762757432011,-9281.93,0.00033964,2]
[393520201,1762757432021,-500.0,0.0003399,2]
[393520202,1762757432031,-198.66,0.00033991,2]
[393520203,1762757432041,-400.0,0.00034022,38]
[393520204,1762757432051,-152.0,0.00034062,4]
[393520205,1762757432060,-168.0,0.00034201,2]
[393520206,1762757432070,-478.32096809,0.0003433,2]
[393520207,1762757432080,-168.0,0.00034555,2]
[393520208,1762757432089,-644.02359,0.0003462,2]
[393520209,1762757432099,-200.0,0.00034693,10]
[393520210,1762757432108,-300.0,0.0003475,2]
[393520211,1762757432118,-1049.85372366,0.00034751,2]
[393520216,1762757432127,-280.80083053,0.00034751,7]
[393520218,1762757432358,-500.0,0.00034751,2]
[393520220,1762757432367,-500.0,0.00034751,7]
[393520222,1762757432376,-500.0,0.00034751,7]
[393520224,1762757432385,-500.0,0.00034751,7]
[393520226,1762757432394,-500.0,0.00034751,2]
[393520228,1762757432404,-500.0,0.00034751,7]
[393520230,1762757432413,-500.0,0.00034751,7]
[393520232,1762757432423,-448.11169099,0.00034751,2]
[393520235,1762757432432,-500.0,0.00034751,7]
[393520238,1762757432442,-500.0,0.00034751,7]
[393520241,1762757432452,-500.0,0.00034751,7]
[393520243,1762757432461,-26.17136547,0.00034751,7]
[393520245,1762757432475,-473.82863453,0.00034751,7]
[393520247,1762757432484,-367.83718246,0.00034751,7]
[393520249,1762757432493,-463.33418301,0.00034751,7]
[393520252,1762757432505,-36.66581699,0.00034751,7]
[393520253,1762757432519,-500.0,0.00034751,7]
[393520255,1762757432528,-382.87377409,0.00034751,7]
[393520258,1762757432538,-117.12622591,0.00034751,7]
[393520259,1762757432548,-166.2828687,0.00034752,15]
[393520261,1762757432557,-163.04840597,0.00034752,2]
[393520265,1762757432579,-269.45243565,0.00034752,2]
[393520267,1762757432590,-1344.92400765,0.00034752,2]
[393520269,1762757432601,-2222.11862173,0.00034752,2]
[393520271,1762757432612,-1057.8,0.00034752,2]
[393520273,1762757432623,-518.77893705,0.00034752,2]
[393520275,1762757432633,-2500.0,0.00034752,2]
[393520277,1762757432643,-1000.0,0.000348,7]
[393520279,1762757432652,-576.35800964,0.00034841,7]
[393520281,1762757432661,-13796.2208653,0.00034842,3]
[393520283,1762757432674,-35410.87320779,0.00034842,3]
[393520287,1762757437830,-2177.62818745,0.00034842,3]
[393520288,1762757437842,-4436.32048767,0.00034842,3]
[393520289,1762757437853,-40750.444,0.00034842,3]
[393520290,1762757437865,-8355.461751,0.00034842,3]
[393520291,1762757437876,-19031.84577479,0.00034842,3]
[393520292,1762757437888,-163.41,0.00034842,2]
[393520293,1762757437898,-574.35281463,0.00034851,120]
[393520294,1762757437907,-16238.98223458,0.00034852,2]
[393520298,1762757440038,-3131.9679137,0.00034852,2]
[393520299,1762757440049,-2066.35554326,0.00034852,2]
[393520300,1762757440069,-4081.94295654,0.00034852,2]
[393520318,1762757443059,-353.40088664,0.00034845,8]
[393520320,1762757443069,-3178.49491129,0.00034852,2]
[393520329,1762757443264,-93.14514969,0.00034852,2]
[393520356,1762757446119,-21408.46804593,0.00034852,2]
[393520357,1762757446185,-1186.10579435,0.00034852,2]
[393520358,1762757446534,-3911.63768855,0.00034852,2]
[393520361,1762757513047,178.54,0.0002715,2]
[393520363,1762758028397,-301.22606135,0.00027,30]
[393520364,1762758028427,-250.0,0.000297,2]
[393520365,1762758028456,-172.72,0.00030973,2]
[393520366,1762758028485,-153.7808323,0.000317,120]
[393520367,1762758257358,180.07,0.00013699,2]
[393520370,1762758395301,-180.07,0.00020187,2]
[393520371,1762758395323,-180.07,0.00026676,2]
[393520372,1762758395345,-180.07,0.00033165,2]
[393520373,1762758395369,-311.0,0.000332,2]
[393520374,1762758395392,-312.0,0.00033221,2]
[393520375,1762758395412,-444.8495,0.00033572,30]
[393520376,1762758395432,-185.5363,0.00033572,2]
[393520377,1762758395453,-27.88484552,0.00033628,3]
[393520385,1762758611926,189.03,0.00030613,2]
[393520389,1762758632037,-466.0,0.00033373,2]
[393520390,1762758632049,-281.56,0.00033373,2]
[393520391,1762758632059,-529.68885213,0.00033395,2]
[393520393,1762758632119,-470.31114787,0.00033395,2]
[393520394,1762758632129,-150.0,0.00033431,2]
[393520395,1762758632139,-200.0,0.00033433,2]
[393520396,1762758632148,-400.0,0.00033628,2]
[393520397,1762758632158,-273.0,0.00033628,3]
[393520398,1762758632169,-1200.0,0.00033628,3]
[393520399,1762758632178,-500.0,0.00033629,7]
[393520400,1762758632188,-414.21491017,0.00033629,2]
[393520401,1762758632197,-274.53514518,0.00033629,7]
[393520402,1762758632206,-500.0,0.00033629,7]
[393520403,1762758632215,-500.0,0.00033629,7]
[393520404,1762758632225,-500.0,0.00033629,7]
[393520405,1762758632236,-500.0,0.00033629,7]
[393520406,1762758632246,-500.0,0.00033629,7]
[393520407,1762758632255,-500.0,0.00033629,7]
[393520408,1762758632264,-500.0,0.00033629,7]
[393520409,1762758632274,-500.0,0.00033629,7]
[393520410,1762758632287,-500.0,0.00033629,7]
[393520411,1762758632297,-500.0,0.00033629,7]
[393520412,1762758632306,-500.0,0.00033629,7]
[393520413,1762758632315,-29811.66629109,0.0003363,2]
[393520414,1762758632328,-56731.72370891,0.0003363,2]
[393520415,1762758632337,-250.0,0.00033653,2]
[393520416,1762758632347,-500.0,0.00033673,5]
[393520417,1762758632356,-200.0,0.0003374,2]
[393520418,1762758632367,-1221.26,0.00033749,30]
[393520419,1762758632377,-187.0,0.00033896,120]
[393520420,1762758632386,-8967.13777386,0.00033931,2]
[393520421,1762758632397,-950.06454241,0.00033931,2]
[393520422,1762758632409,-545.43283274,0.00033931,2]
[393520423,1762758632419,-5000.0,0.00033934,2]
[393520424,1762758632428,-501.78304251,0.00033973,5]
[393520425,1762758632438,-500.0,0.00033973,5]
[393520426,1762758632448,-505.59817518,0.00033973,5]
[393520427,1762758632457,-505.38210778,0.00033973,5]
[393520428,1762758632466,-500.0,0.00033973,5]
[393520429,1762758632476,-292.72897136,0.00033973,5]
[393520431,1762758632489,-207.27102864,0.00033973,5]
[393520433,1762758632498,-461.70678519,0.00033973,5]
[393520435,1762758632511,-500.0,0.00033973,5]
[393520437,1762758632520,-1018.691,0.00033999,37]
[393520439,1762758632530,-403.45060675,0.00033999,7]
[393520441,1762758632539,-3381.7227376,0.00034,2]
[393520443,1762758632550,-20200.12688195,0.00034,2]
[393520445,1762758632561,-39364.11014383,0.00034,2]
[393520448,1762758632571,-4385.28474669,0.00034,2]
[393520986,1762758638236,-1360.25058712,0.00034,2]
[393520994,1762758638303,-27884.29855768,0.00034,2]
[393520996,1762758638312,-309.0,0.00034031,7]
[393520998,1762758638323,-10462.63514896,0.00034151,2]
[393521000,1762758638333,-2286.0,0.00034208,2]
[393521002,1762758638342,-309.0,0.00034294,7]
[393521004,1762758638352,-177.04,0.00034356,2]
[393521006,1762758638364,-10462.63514896,0.00034372,2]
[393521008,1762758638373,-503.74726495,0.00034521,5]
[393521010,1762758638383,-1000.0,0.00034521,5]
[393521012,1762758638393,-1000.0,0.00034521,5]
[393521014,1762758638403,-10462.63514896,0.00034592,2]
[393521016,1762758638412,-221.8861932,0.00034594,2]
[393521018,1762758638422,-6355.62202167,0.00034632,2]
[393521020,1762758638432,-151.0,0.00034632,31]
[393521022,1762758638441,-151.0,0.00034632,31]
[393521024,1762758638451,-151.0,0.00034632,31]
[393521026,1762758638462,-151.0,0.00034632,31]
[393521028,1762758638472,-151.0,0.00034632,31]
[393521030,1762758638482,-151.0,0.00034632,31]
[393521032,1762758638492,-163.142177,0.00034632,31]
[393521034,1762758638502,-151.0,0.00034632,31]
[393521036,1762758638512,-153.234468,0.00034632,31]
[393521038,1762758638521,-5000.0,0.00034642,30]
[393521040,1762758638531,-235.6005911,0.00034652,8]
[393521042,1762758638540,-349.05639732,0.00034652,2]
[393521044,1762758638550,-345.0,0.00034658,2]
[393521046,1762758638560,-235.60059108,0.00034683,8]
[393521048,1762758638569,-200.0,0.00034693,10]
[393521050,1762758638578,-175.32100667,0.00034703,7]
[393521052,1762758638588,-235.60059108,0.00034713,8]
[393521055,1762758638598,-151.0,0.00034732,31]
[393521057,1762758638608,-241.717882,0.00034732,31]
[393521059,1762758638619,-241.717882,0.00034732,31]
[393521061,1762758638628,-241.717882,0.00034732,31]
[393521063,1762758638638,-241.717882,0.00034732,31]
[393521065,1762758638648,-151.0,0.00034732,31]
[393521067,1762758638657,-152.334625,0.00034732,31]
[393521069,1762758638666,-151.0,0.00034732,31]
[393521071,1762758638680,-151.0,0.00034732,31]
[393521073,1762758638690,-162.384402,0.00034732,31]
[393521075,1762758638699,-152.791909,0.00034732,31]
[393521077,1762758638709,-151.0,0.00034732,31]
[393521079,1762758638719,-151.0,0.00034732,30]
[393521081,1762758638728,-206.260351,0.00034732,31]
[393521083,1762758638738,-151.0,0.00034732,31]
[393521085,1762758638749,-151.0,0.00034732,31]
[393521087,1762758638758,-186.851635,0.00034732,31]
[393521089,1762758638768,-151.0,0.00034732,31]
[393521091,1762758638777,-151.0,0.00034732,31]
[393521093,1762758638787,-153.355937,0.00034732,31]
[393521095,1762758638796,-151.0,0.00034732,31]
[393521097,1762758638806,-151.0,0.00034732,31]
[393521100,1762758638820,-151.0,0.00034732,31]
[393521102,1762758638831,-196.7016,0.00034732,31]
[393521104,1762758638840,-151.0,0.00034732,31]
[393521106,1762758638849,-151.0,0.00034732,31]
[393521108,1762758638859,-155.345591,0.00034732,31]
[393521110,1762758638869,-247.626441,0.00034732,31]
[393521112,1762758638879,-151.0,0.00034732,31]
[393521114,1762758638888,-151.0,0.00034732,31]
[393521116,1762758638898,-151.0,0.00034732,31]
[393521118,1762758638907,-151.0,0.00034732,31]
[393521120,1762758638917,-151.0,0.00034732,31]
[393521122,1762758638927,-151.0,0.00034732,31]
[393521124,1762758638937,-183.948423,0.00034732,31]
[393521126,1762758638947,-156.767294,0.00034732,31]
[393521128,1762758638956,-151.0,0.00034732,31]
[393521130,1762758638966,-157.019727,0.00034732,31]
[393521132,1762758638976,-151.0,0.00034732,31]
[393521134,1762758638986,-151.0,0.00034732,31]
[393521136,1762758638997,-186.119187,0.00034732,31]
[393521138,1762758639007,-186.119187,0.00034732,31]
[393521140,1762758639016,-186.119187,0.00034732,31]
[393521142,1762758639027,-151.0,0.00034732,31]
[393521144,1762758639037,-151.0,0.00034732,31]
[393521146,1762758639047,-151.0,0.00034732,31]
[393521148,1762758639057,-186.119187,0.00034732,31]
[393521150,1762758639066,-151.0,0.00034732,31]
[393521152,1762758639076,-151.0,0.00034732,31]
[393521154,1762758639087,-151.0,0.00034732,31]
[393521156,1762758639097,-151.0,0.00034732,31]
[393521158,1762758639107,-151.0,0.00034732,31]
[393521160,1762758639117,-151.0,0.00034732,31]
[393521162,1762758639126,-174.050863,0.00034732,31]
[393521164,1762758639135,-151.0,0.00034732,31]
[393521166,1762758639144,-157.386605,0.00034732,31]
[393521168,1762758639154,-151.0,0.00034732,31]
[393521170,1762758639163,-159.089602,0.00034732,31]
[393521172,1762758639174,-151.0,0.00034732,31]
[393521174,1762758639184,-151.0,0.00034732,30]
[393521176,1762758639193,-154.048123,0.00034732,31]
[393521178,1762758639203,-203.182018,0.00034732,31]
[393521179,1762758639212,-203.182018,0.00034732,31]
[393521181,1762758639223,-792.32,0.00034732,14]
[393521183,1762758639232,-203.182018,0.00034732,31]
[393521185,1762758639242,-154.323712,0.00034732,31]
[393521187,1762758639252,-203.182018,0.00034732,31]
[393521189,1762758639261,-151.0,0.00034732,31]
[393521191,1762758639272,-151.0,0.00034732,31]
[393521193,1762758639284,-151.0,0.00034732,31]
[393521195,1762758639294,-162.277168,0.00034732,31]
[393521197,1762758639303,-151.0,0.00034732,31]
[393521199,1762758639313,-151.0,0.00034732,31]
[393521201,1762758639323,-209.838055,0.00034732,31]
[393521203,1762758639332,-154.110627,0.00034732,31]
[393521205,1762758639342,-164.630979,0.00034732,31]
[393521207,1762758639352,-209.838055,0.00034732,31]
[393521209,1762758639364,-209.838055,0.00034732,31]
[393521210,1762758639374,-151.0,0.00034732,31]
[393521213,1762758639384,-151.0,0.00034732,15]
[393521215,1762758639394,-290.188916,0.00034732,31]
[393521217,1762758639404,-151.0,0.00034732,31]
[393521219,1762758639413,-209.838055,0.00034732,31]
[393521221,1762758639423,-151.0,0.00034732,15]
[393521223,1762758639432,-151.0,0.00034732,31]
[393521224,1762758639442,-151.0,0.00034732,31]
[393521225,1762758639451,-151.0,0.00034732,31]
[393521226,1762758639461,-151.0,0.00034732,31]
[393521227,1762758639470,-151.0,0.00034732,31]
[393521228,1762758639480,-151.0,0.00034732,31]
[393521229,1762758639491,-156.978168,0.00034732,31]
[393521230,1762758639501,-151.0,0.00034732,31]
[393521231,1762758639510,-151.0,0.00034732,31]
[393521232,1762758639519,-151.0,0.00034732,31]
[393521233,1762758639528,-151.0,0.00034732,31]
[393521235,1762758639537,-151.0,0.00034732,31]
[393521237,1762758639547,-172.872345,0.00034732,31]
[393521239,1762758639556,-153.61352,0.00034732,31]
[393521241,1762758639565,-151.0,0.00034732,31]
[393521243,1762758639575,-153.422414,0.00034732,31]
[393521245,1762758639584,-152.70656,0.00034732,31]
[393521247,1762758639594,-151.0,0.00034732,31]
[393521249,1762758639603,-151.0,0.00034732,31]
[393521251,1762758639613,-151.0,0.00034732,31]
[393521253,1762758639623,-151.0,0.00034732,30]
[393521255,1762758639633,-151.0,0.00034732,30]
[393521257,1762758639642,-151.0,0.00034732,30]
[393521259,1762758639652,-151.0,0.00034732,30]
[393521261,1762758639662,-151.0,0.00034732,30]
[393521284,1762758639871,-151.0,0.00034732,30]
[393521286,1762758639881,-151.0,0.00034732,30]
[393521288,1762758639891,-151.0,0.00034732,30]
[393521290,1762758639900,-151.0,0.00034732,30]
[393521292,1762758639910,-743.6642,0.00034732,31]
[393521294,1762758639919,-151.0,0.00034732,30]
[393521296,1762758639929,-743.6642,0.00034732,31]
[393521298,1762758639939,-151.0,0.00034732,30]
[393521300,1762758639948,-743.6642,0.00034732,31]
[393521302,1762758639958,-151.0,0.00034732,30]
[393521305,1762758639967,-151.0,0.00034732,31]
[393521309,1762758639977,-151.0,0.00034732,31]
[393521313,1762758639987,-743.6642,0.00034732,31]
[393521316,1762758639997,-743.6642,0.00034732,31]
[393521319,1762758640007,-743.6642,0.00034732,31]
[393521322,1762758640017,-743.6642,0.00034732,31]
[393521326,1762758640026,-743.6642,0.00034732,31]
[393521329,1762758640036,-743.6642,0.00034732,31]
[393521332,1762758640045,-743.6642,0.00034732,31]
[393521335,1762758640055,-743.6642,0.00034732,31]
[393521338,1762758640064,-743.6642,0.00034732,31]
[393521341,1762758640075,-151.0,0.00034732,31]
[393521344,1762758640085,-151.0,0.00034732,31]
[393521346,1762758640094,-151.0,0.00034732,31]
[393521350,1762758640106,-151.0,0.00034732,31]
[393521353,1762758640116,-151.0,0.00034732,31]
[393521357,1762758640126,-151.0,0.00034732,31]
[393521360,1762758640136,-151.0,0.00034732,31]
[393521362,1762758640145,-151.0,0.00034732,31]
[393521365,1762758640154,-151.0,0.00034732,31]
[393521368,1762758640164,-151.0,0.00034732,31]
[393521371,1762758640173,-151.0,0.00034732,31]
[393521374,1762758640183,-153.85445,0.00034732,31]
[393521376,1762758640192,-151.0,0.00034732,31]
[393521379,1762758640202,-151.0,0.00034732,31]
[393521380,1762758640212,-151.0,0.00034732,31]
[393521383,1762758640221,-151.0,0.00034732,31]
[393521384,1762758640231,-201.840063,0.00034732,31]
[393521387,1762758640241,-151.069191,0.00034732,5]
[393521389,1762758640250,-151.0,0.00034732,31]
[393521391,1762758640260,-151.0,0.00034732,31]
[393521394,1762758640269,-151.0,0.00034732,31]
[393521397,1762758640280,-151.0,0.00034732,31]
[393521399,1762758640293,-151.0,0.00034732,31]
[393521403,1762758640303,-154.904028,0.00034732,31]
[393521406,1762758640314,-151.0,0.00034732,31]
[393521409,1762758640324,-151.0,0.00034732,31]
[393521412,1762758640333,-152.688523,0.00034732,31]
[393521415,1762758640343,-94526.13033784,0.00034732,3]
[393521418,1762758640357,-538.75390449,0.00034732,3]
[393521422,1762758640372,-15418.66787792,0.00034732,3]
[393521448,1762758640495,-151.0,0.00034632,31]
[393521451,1762758640505,-894.01797964,0.00034673,2]
[393521454,1762758640514,-151.0,0.00034732,31]
[393521457,1762758640523,-218.966974,0.00034732,31]
[393521460,1762758640532,-1546.72572425,0.00034732,3]
[393521465,1762758640544,-9776.92811639,0.00034732,3]
[393521468,1762758640555,-777.89125031,0.00034732,3]
[393521471,1762758640567,-10445.0,0.00034732,3]
[393521474,1762758640577,-9159.96510986,0.00034732,3]
[393521479,1762758640592,-151.0,0.00034732,31]
[393521482,1762758640601,-1618.67069202,0.00034732,3]
[393521485,1762758640612,-2204.58339215,0.00034732,3]
[393521854,1762758643547,-13.35673841,0.00034632,31]
[393521856,1762758643558,-182.59059459,0.00034632,31]
[393521858,1762758643568,-195.947333,0.00034732,31]
[393521860,1762758643577,-195.947333,0.00034732,31]
[393521862,1762758643587,-12682.54194769,0.00034732,3]
[393522133,1762758646228,-195.947333,0.00034632,31]
[393522134,1762758646238,-151.0,0.00034632,31]
[393522135,1762758646249,-195.947333,0.00034632,31]
[393522136,1762758646258,-195.947333,0.00034732,31]
[393522137,1762758646267,-195.947333,0.00034732,31]
[393522138,1762758646278,-211.069275,0.00034732,31]
[393522140,1762758646291,-195.947333,0.00034732,31]
[393522142,1762758646301,-6982.194062,0.00034732,3]
[393522144,1762758646312,-429.64664181,0.00034732,3]
[393522147,1762758646324,-700.03651592,0.00034732,3]
[393522151,1762758646358,-1997.73019128,0.00034732,3]
[393522153,1762758646369,-2718.42175,0.00034732,3]
[393522444,1762758736143,1415.7169932,0.0002,2]
[393522445,1762758775326,-369.27739277,0.000303,5]
[393522446,1762758777318,-201.36752659,0.000303,5]
[393522447,1762758781787,-171.76167588,0.000303,5]
[393522448,1762758783670,-319.52375011,0.000303,5]
[393522449,1762758789923,-192.31896509,0.000303,5]
[393522450,1762758819618,-422.5892517,0.0003333,120]
[393522451,1762758861105,-508.85013673,0.00034851,120]
[393522452,1762758861137,-500.0,0.00034851,120]
[393522453,1762758861169,-500.0,0.00034851,120]
[393522454,1762758861201,-500.0,0.00034851,120]
[393522455,1762758861238,-568.56061157,0.00034999,120]
[393522456,1762758982064,-167.0,0.000307,5]
[393522457,1762759045291,-223.66125096,0.000295,5]
[393522458,1762759047026,-344.33175328,0.000295,5]
[393522459,1762759049205,-151.0,0.000295,5]
[393522460,1762759055353,-182.92101406,0.000295,5]
[393522461,1762759057117,-178.8903808,0.000295,5]
[393522462,1762759075323,-261.06862099,0.00029499,2]
[393522463,1762759078341,-330.40070945,0.00029499,2]
[393522464,1762759080987,-328.53066956,0.00029499,2]
[393522465,1762759081010,-49.42497167,0.000295,5]
[393522466,1762759086874,-250.0,0.00029499,2]
[393522467,1762759105271,-13.0,0.00029499,2]
[393522468,1762759105292,-224.23419029,0.000295,5]
[393522469,1762759111141,-207.39304278,0.000295,5]
[393522470,1762759114231,-159.9860387,0.00029499,2]
[393522471,1762759118694,-163.17,0.00029499,2]
[393522472,1762759279516,-3950.61750275,0.000294,5]
[393522473,1762759279756,-10000.01,0.000294,5]
[393522474,1762759279881,-10000.01,0.000294,5]
[393522475,1762759280002,-10000.01,0.000294,5]
[393522476,1762759280117,-10000.01,0.000294,5]
[393522477,1762759280251,-10000.01,0.000294,5]
[393522478,1762759282341,-3512.53410659,0.000294,5]
[393522479,1762759282364,-2974.94178682,0.000294,5]
[393522480,1762759288423,-1200.0,0.00029498,2]
[393522481,1762759288453,-300.0,0.00029498,2]
[393522482,1762759288486,-500.0,0.00029498,2]
[393522483,1762759288516,-500.0,0.00029498,2]
[393522484,1762759288546,-523.63656899,0.00029498,2]
[393522485,1762759288580,-500.0,0.00029498,2]
[393522486,1762759288608,-550.18656631,0.00029498,2]
[393522487,1762759288643,-500.0,0.00029498,2]
[393522488,1762759288676,-352.3637294,0.00029498,2]
[393522489,1762759288772,-147.6362706,0.00029498,2]
[393522490,1762759288805,-500.0,0.00029498,2]
[393522491,1762759288840,-500.0,0.00029498,2]
[393522492,1762759288873,-500.0,0.00029498,2]
[393522493,1762759288906,-500.0,0.00029498,2]
[393522494,1762759288939,-500.0,0.00029498,2]
[393522495,1762759288973,-500.0,0.00029498,2]
[393522496,1762759289007,-500.0,0.00029498,2]
[393522497,1762759289041,-500.0,0.00029498,2]
[393522498,1762759289077,-500.0,0.00029498,2]
[393522499,1762759289109,-204.7374588,0.00029498,2]
[393522500,1762759289191,-295.2625412,0.00029498,2]
[393522501,1762759289223,-500.0,0.00029498,2]
[393522502,1762759289255,-500.0,0.00029498,2]
[393522503,1762759289289,-500.0,0.00029498,2]
[393522504,1762759289321,-500.0,0.00029498,2]
[393522505,1762759289353,-500.0,0.00029498,2]
[393522506,1762759289385,-500.0,0.00029498,2]
[393522507,1762759289417,-500.0,0.00029498,2]
[393522508,1762759289448,-500.0,0.00029498,2]
[393522509,1762759289481,-500.0,0.00029498,2]
[393522510,1762759289563,-589.17961874,0.00029498,2]
[393522511,1762759289595,-500.0,0.00029498,2]
[393522512,1762759289627,-500.0,0.00029498,2]
[393522513,1762759289659,-500.0,0.00029498,2]
[393522514,1762759289691,-500.0,0.00029498,2]
[393522515,1762759289722,-500.0,0.00029498,2]
[393522516,1762759289754,-500.0,0.00029498,2]
[393522517,1762759289793,-500.0,0.00029498,2]
[393522518,1762759289843,-500.0,0.00029498,2]
[393522519,1762759289885,-321.65076252,0.00029498,2]
[393522520,1762759290042,-178.34923748,0.00029498,2]
[393522521,1762759290084,-500.0,0.00029498,2]
[393522522,1762759290127,-500.0,0.00029498,2]
[393522523,1762759290169,-500.0,0.00029498,2]
[393522524,1762759290212,-500.0,0.00029498,2]
[393522525,1762759290254,-500.0,0.00029498,2]
[393522526,1762759290295,-500.0,0.00029498,2]
[393522527,1762759290337,-500.0,0.00029498,2]
[393522528,1762759290379,-500.0,0.00029498,2]
[393522529,1762759290417,-500.0,0.00029498,2]
[393522530,1762759290458,-143.31152504,0.00029498,2]
[393522531,1762759290620,-356.68847496,0.00029498,2]
[393522532,1762759290660,-500.0,0.00029498,2]
[393522533,1762759290700,-500.0,0.00029498,2]
[393522534,1762759290737,-500.0,0.00029498,2]
[393522535,1762759290776,-500.0,0.00029498,2]
[393522536,1762759290815,-500.0,0.00029498,2]
[393522537,1762759290856,-500.0,0.00029498,2]
[393522538,1762759290895,-500.0,0.00029498,2]
[393522539,1762759290934,-558.91796187,0.00029498,2]